bitfinex-derivatives/quotes_ETHF0:USTF0_20250106
["timestamp","ask_amount","ask_price","bid_price","bid_amount"]
[1736145028240,3.2078,3670.2,3670.1,1.2249932]
[1736145030643,3.18426775,3670.5,3670.1,0.9797132]
[1736145030845,3.18426775,3670.6,3670.4,4.1875132]
[1736145031146,3.18426775,3670.6,3670.5,0.68535]
[1736145031546,3.18426775,3670.6,3670.5,0.4401]
[1736145031943,3.18426775,3670.6,3670.5,41.2401]
[1736145032139,0.32413091,3670.7,3670.5,45.06214003]
[1736145032348,0.32413091,3670.7,3670.6,0.9797132]
[1736145034945,0.32413091,3670.7,3670.5,41.2401]
[1736145035142,0.32413091,3670.7,3670.6,0.24525]
[1736145035848,0.32413091,3670.7,3670.5,0.68535]
[1736145036048,0.32413091,3670.7,3670.5,41.48535]
[1736145036244,0.32413091,3670.7,3670.5,41.2401]
[1736145036450,0.32413091,3670.7,3670.5,41.48535]
[1736145036754,0.32413091,3670.7,3670.6,0.24525]
[1736145037252,0.32413091,3670.7,3670.5,0.4401]
[1736145037751,0.4076,3670.6,3670.5,0.4401]
[1736145042451,0.4076,3670.6,3670.5,0.68535]
[1736145043053,0.4163,3670.8,3670.7,0.24524]
[1736145043244,3.2078,3671.4,3670.6,2.17172778]
[1736145043245,0.24521,3671.2,3670.6,2.17172778]
[1736145043444,0.24521,3671.2,3670.8,0.24523]
[1736145043648,1.54571,3671.3,3670.9,0.24522]
[1736145043848,1.54571,3671.3,3670.9,0.67922]
[1736145044045,0.24521,3671.2,3670.9,0.67922]
[1736145044242,1.5457,3671.3,3671.0,0.24522]
[1736145045054,1.3005,3671.3,3671.0,2.17172778]
[1736145045254,6.39206775,3671.4,3671.3,0.2452]
[1736145045557,6.39206775,3671.4,3671.3,2.41692778]
[1736145046259,3.2078,3671.4,3671.3,2.41692778]
[1736145047052,3.2078,3671.4,3671.0,2.17172778]
[1736145047354,3.2078,3671.4,3670.9,4.7123295]
[1736145047355,0.24521,3671.1,3670.9,4.7123295]
[1736145047550,0.4168,3671.0,3670.9,4.7123295]
[1736145047757,0.8483,3671.0,3670.9,4.7123295]
[1736145048149,0.8483,3671.0,3670.9,6.85869724]
[1736145049450,0.8483,3671.0,3670.9,4.70863472]
[1736145049645,0.8483,3671.0,3670.9,4.95386472]
[1736145049853,0.8483,3671.0,3670.9,4.70863472]
[1736145052061,0.8483,3671.0,3670.9,4.95386472]
[1736145055557,0.4168,3671.0,3670.9,4.95386472]
[1736145057466,0.4168,3671.0,3670.9,4.27463472]
[1736145057768,0.4168,3671.0,3670.7,43.66136778]
[1736145057961,0.4497,3670.9,3670.7,43.66136778]
[1736145058262,0.4317,3670.8,3670.7,43.66136778]
[1736145058465,0.4317,3670.8,3670.7,41.48964]
[1736145058670,0.4317,3670.8,3670.7,40.8]
[1736145062380,0.67693,3670.8,3670.7,40.8]
[1736145062583,0.4317,3670.8,3670.7,40.8]
[1736145062982,0.67693,3670.8,3670.7,40.8]
[1736145064075,0.4317,3670.8,3670.7,40.8]
[1736145064277,0.4317,3670.8,3670.7,41.04524]
[1736145065085,0.4317,3670.8,3670.7,42.02529672]
[1736145065978,0.4497,3670.9,3670.7,42.02529672]
[1736145066180,0.4497,3670.9,3670.8,0.24523]
[1736145066377,0.4497,3670.9,3670.8,0.66093]
[1736145066984,0.4497,3670.9,3670.8,0.4157]
[1736145068076,0.4168,3671.0,3670.8,0.4157]
[1736145068283,0.4168,3671.0,3670.9,0.24523]
[1736145068480,0.4168,3671.0,3670.9,0.69263]
[1736145069491,0.4299,3671.3,3670.9,0.4474]
[1736145069785,0.8648,3671.3,3671.2,0.24521]
[1736145070585,0.8648,3671.3,3670.9,0.4474]
[1736145070785,0.8648,3671.3,3671.2,0.24521]
[1736145071088,3.2078,3671.4,3671.1,2.17154537]
[1736145071288,3.18426775,3671.6,3671.5,0.24519]
[1736145071880,0.24518,3671.6,3671.3,0.2452]
[1736145072288,0.24519,3671.5,3671.3,0.4485]
[1736145072581,0.68009,3671.4,3671.3,0.4485]
[1736145073279,0.68009,3671.4,3671.3,4.7270402]
[1736145074177,0.4349,3671.4,3671.3,4.7270402]
[1736145075683,0.4349,3671.4,3671.3,4.9722402]
[1736145076182,0.4349,3671.4,3671.3,4.7270402]
[1736145076388,3.2078,3671.5,3671.4,0.24519]
[1736145076585,3.2078,3671.5,3671.4,0.67829]
[1736145077078,3.45299,3671.5,3671.3,4.7270402]
[1736145077286,3.2078,3671.5,3671.3,4.7270402]
[1736145077484,0.4337,3671.4,3671.3,4.9722402]
[1736145077890,0.4337,3671.4,3671.3,0.6937]
[1736145078184,0.4337,3671.4,3671.3,0.4485]
[1736145078383,0.67889,3671.4,3671.3,0.4485]
[1736145078584,0.4337,3671.4,3671.2,8.59624261]
[1736145078788,0.4485,3671.3,3671.2,8.59624261]
[1736145079286,0.4485,3671.3,3671.2,2.17154537]
[1736145080986,0.4337,3671.4,3671.2,5.99204348]
[1736145081384,0.4337,3671.4,3671.3,0.4069]
[1736145081794,0.4337,3671.4,3671.3,1.0755]
[1736145082283,0.4337,3671.4,3671.3,4.89599811]
[1736145083090,0.4507,3671.7,3671.5,0.24518]
[1736145083285,0.4507,3671.7,3671.5,2.41672537]
[1736145083892,7.23146775,3671.9,3671.6,0.24518]
[1736145084192,3.18426775,3671.9,3671.8,2.17154537]
[1736145084487,3.18426775,3671.9,3671.8,2.41671537]
[1736145084888,6.39206775,3671.9,3671.8,40.8]
[1736145085087,6.63722775,3671.9,3671.8,40.8]
[1736145085386,3.45296,3671.9,3671.8,44.62049811]
[1736145085985,3.45296,3671.9,3671.8,3.82049811]
[1736145086490,0.24516,3671.9,3671.8,3.82049811]
[1736145086891,3.45296,3671.9,3671.8,3.82049811]
[1736145087093,3.45296,3671.9,3671.8,4.28037392]
[1736145087290,3.45296,3671.9,3671.8,0.17487393]
[1736145087490,0.24518,3671.6,3671.5,6.42056089]
[1736145087991,5.24518,3671.6,3671.5,2.413003]
[1736145088194,0.24521,3671.2,3671.1,8.55285977]
[1736145088395,3.45301,3671.2,3671.1,8.55285977]
[1736145088790,3.2078,3671.2,3670.9,6.42238925]
[1736145088990,0.24522,3671.0,3670.9,6.42238925]
[1736145090095,0.24521,3671.1,3670.9,6.42238925]
[1736145090290,0.24521,3671.1,3671.0,0.8529]
[1736145091097,3.45301,3671.2,3671.0,0.8529]
[1736145091291,3.2078,3671.2,3671.0,1.09812]
[1736145091595,3.2078,3671.2,3671.1,0.4353]
[1736145091998,3.45301,3671.2,3671.1,0.4353]
[1736145093700,0.24524,3670.8,3670.5,0.24525]
[1736145093891,3.2078,3671.2,3670.4,2.17154537]
[1736145094091,0.24523,3670.9,3670.5,0.24525]
[1736145094392,0.24524,3670.7,3670.6,40.8]
[1736145095088,3.2078,3670.8,3670.3,1.3263]
[1736145095287,0.24526,3670.5,3670.3,1.3263]
[1736145095492,0.24526,3670.4,3670.3,1.3263]
[1736145095693,0.24526,3670.4,3670.3,42.1263]
[1736145096108,0.24526,3670.5,3670.3,42.1263]
[1736145096397,3.45306,3670.4,3670.3,42.1263]
[1736145098700,3.2078,3670.4,3670.3,42.1263]
[1736145100795,3.2078,3670.4,3670.3,42.37157]
[1736145101195,3.2078,3670.8,3670.3,42.1263]
[1736145101390,3.2078,3670.8,3670.5,0.24525]
[1736145101601,3.2078,3670.8,3670.3,42.1263]
[1736145101795,3.2078,3670.8,3670.5,0.24525]
[1736145102401,3.2078,3670.8,3670.3,42.1263]
[1736145102603,3.45304,3670.8,3670.4,0.24526]
[1736145103007,3.2078,3670.8,3670.3,42.1263]
[1736145103301,0.24525,3670.7,3670.3,42.37157]
[1736145103697,3.2078,3670.8,3670.3,1.3263]
[1736145103898,3.45306,3670.4,3670.3,1.3263]
[1736145104207,3.2078,3670.4,3670.3,1.3263]
[1736145106603,3.45306,3670.4,3670.3,1.3263]
[1736145109103,3.2078,3670.4,3670.3,1.3263]
[1736145109901,3.45306,3670.4,3670.3,1.3263]
[1736145110809,3.45306,3670.4,3670.3,0.8787]
[1736145120414,3.2078,3670.4,3670.3,1.12397]
[1736145120615,6.39167127,3670.8,3670.7,0.24524]
[1736145121219,6.39167127,3670.8,3670.3,0.8787]
[1736145121517,6.63691127,3670.8,3670.6,0.24524]
[1736145121709,6.63691127,3670.8,3670.7,0.4447]
[1736145121911,6.63691127,3670.8,3670.7,0.8952]
[1736145122117,3.45304,3670.8,3670.7,0.8952]
[1736145123316,3.45304,3670.8,3670.3,0.4434]
[1736145123521,3.18387127,3671.2,3670.3,0.4434]
[1736145123522,3.45306,3670.4,3670.3,0.4434]
[1736145124611,3.2078,3670.4,3669.6,3.2078]
[1736145124811,2.17154537,3670.5,3669.8,0.9001]
[1736145124812,3.2078,3669.9,3669.8,0.9001]
[1736145125125,3.45309,3669.9,3669.8,0.9001]
[1736145128121,3.2078,3669.9,3669.8,0.9001]
[1736145128919,3.45309,3669.9,3669.8,0.9001]
[1736145129123,3.2078,3669.9,3669.8,0.9001]
[1736145129920,3.2078,3669.9,3669.8,41.7001]
[1736145130811,3.45309,3669.9,3669.8,41.7001]
[1736145131616,3.45309,3669.9,3669.8,0.4496]
[1736145131823,0.24533,3669.3,3669.2,0.4097]
[1736145132018,0.24533,3669.3,3669.2,42.08]
[1736145132216,0.24533,3669.4,3669.2,42.08]
[1736145132423,5.37934537,3669.9,3669.2,42.08]
[1736145133328,3.2078,3669.4,3669.2,42.08]
[1736145133628,0.24533,3669.3,3669.2,1.28]
[1736145135520,2.41687537,3669.3,3669.2,1.28]
[1736145135920,2.41687537,3669.3,3669.2,0.8349]
[1736145136125,2.41687537,3669.3,3669.2,0.4252]
[1736145136320,2.17154537,3669.3,3668.4,0.4276]
[1736145136515,0.24537,3668.7,3668.6,0.4431]
[1736145137216,0.24537,3668.7,3668.5,0.4499]
[1736145137217,0.24538,3668.6,3668.5,0.4499]
[1736145137423,3.45318,3668.6,3668.5,0.4499]
[1736145138119,3.45318,3668.6,3668.0,8.55285977]
[1736145138120,3.2078,3668.6,3668.0,8.55285977]
[1736145138324,0.24541,3668.1,3668.0,8.55285977]
[1736145139021,3.2078,3668.2,3667.8,0.4245]
[1736145139022,0.24543,3668.0,3667.8,0.4245]
[1736145139216,3.2078,3668.2,3667.8,0.4245]
[1736145139519,0.24542,3668.1,3667.8,0.4245]
[1736145139729,0.24542,3668.0,3667.8,0.4245]
[1736145139926,0.24542,3668.1,3667.8,0.4245]
[1736145141120,3.2078,3668.2,3667.8,0.4245]
[1736145141327,0.24542,3668.1,3667.8,0.4245]
[1736145143323,3.2078,3668.2,3667.8,0.4245]
[1736145143526,0.24543,3667.9,3667.6,40.8]
[1736145143834,0.24544,3667.7,3667.6,40.8]
[1736145144018,3.2078,3667.8,3667.2,0.4254]
[1736145144222,0.24546,3667.5,3667.2,0.4254]
[1736145144423,0.24547,3667.3,3667.2,0.4254]
[1736145144620,3.2078,3667.4,3667.2,0.4254]
[1736145145530,3.2078,3667.4,3667.2,0.67087]
[1736145145722,3.2078,3667.4,3667.2,0.4254]
[1736145145926,0.24547,3667.3,3667.2,0.4254]
[1736145148029,0.24252624,3667.3,3667.2,0.4254]
[1736145149528,3.45327,3667.4,3667.2,0.4254]
[1736145150029,3.2078,3667.4,3667.3,2.41701537]
[1736145150634,3.2078,3667.8,3667.3,2.17154537]
[1736145150833,3.2078,3667.8,3667.7,0.24544]
[1736145151622,3.2078,3667.8,3667.6,2.41698537]
[1736145151827,3.2078,3667.8,3667.7,1.08554]
[1736145153332,3.2078,3668.2,3667.7,0.8401]
[1736145153531,3.2078,3668.2,3667.9,0.24543]
[1736145153927,3.2078,3668.2,3668.0,0.4456]
[1736145154127,3.2078,3668.2,3668.1,0.24541]
[1736145154336,3.2078,3668.6,3668.0,0.4456]
[1736145154539,3.2078,3668.6,3668.5,0.24539]
[1736145154731,3.2078,3668.6,3668.2,2.17154537]
[1736145154934,3.2078,3668.6,3668.4,0.24539]
[1736145155134,3.2078,3668.6,3668.5,0.4421]
[1736145155534,3.2078,3668.6,3668.5,0.68749]
[1736145158039,3.2078,3669.1,3668.5,0.4421]
[1736145158644,0.24536,3669.0,3668.6,0.24538]
[1736145158842,0.24536,3669.0,3668.7,0.4176]
[1736145159041,0.24536,3669.0,3668.7,0.66297]
[1736145159539,0.24535,3669.0,3668.7,0.4176]
[1736145160444,0.24537,3668.8,3668.7,0.4176]
[1736145171954,0.24539,3668.4,3668.3,0.4488]
[1736145173561,3.2078,3668.5,3667.8,0.8739]
[1736145173863,0.24542,3668.0,3667.9,0.4489]
[1736145176356,0.24542,3668.0,3667.2,42.97154537]
[1736145176357,0.24547,3667.3,3667.2,42.97154537]
[1736145177760,0.24547,3667.3,3667.2,43.87134537]
[1736145179153,0.24546,3667.4,3667.2,43.87134537]
[1736145179961,3.2078,3667.7,3667.2,43.87134537]
[1736145180165,0.24547,3667.3,3667.2,43.87134537]
[1736145183167,0.24546,3667.4,3667.2,43.87134537]
[1736145183364,3.2078,3667.7,3667.2,43.87134537]
[1736145183757,3.2078,3667.7,3667.5,2.17154537]
[1736145183957,3.2078,3667.7,3667.5,2.41699537]
[1736145184162,3.2078,3667.7,3667.6,0.4517]
[1736145185070,3.45324,3667.7,3667.6,0.4517]
[1736145188660,5.56083026,3667.7,3667.6,0.4517]
[1736145191375,0.24547,3667.3,3667.2,0.8998]
[1736145191573,3.45327,3667.3,3667.2,0.8998]
[1736145195183,0.24547,3667.3,3667.2,0.8998]
[1736145195377,2.10759026,3667.6,3667.2,0.8998]
[1736145195577,0.24547,3667.3,3667.2,0.8998]
[1736145195878,0.24546,3667.5,3667.2,0.8998]
[1736145196080,0.24546,3667.5,3667.2,1.14528]
[1736145196276,2.35304026,3667.6,3667.2,1.14528]
[1736145196475,0.24546,3667.5,3667.2,1.14528]
[1736145197086,5.31539026,3667.7,3667.2,1.14528]
[1736145197278,0.24546,3667.5,3667.2,1.14528]
[1736145197475,5.31539026,3667.7,3667.2,1.14528]
[1736145197879,0.24545,3667.6,3667.2,1.14528]
[1736145198083,5.31539026,3667.7,3667.2,3.07134537]
[1736145198383,5.56083026,3667.7,3667.4,0.24546]
[1736145198581,3.45324,3667.7,3667.4,0.24546]
[1736145198775,3.2078,3667.7,3667.5,0.4328]
[1736145199781,3.45324,3667.7,3667.5,0.4328]
[1736145200487,0.24545,3667.6,3667.5,0.4328]
[1736145200987,3.45325,3667.7,3667.5,0.4328]
[1736145202181,3.2078,3667.7,3667.5,0.4328]
[1736145202486,3.2078,3667.7,3667.5,2.60434537]
[1736145203382,3.2078,3667.7,3667.6,0.24545]
[1736145203979,2.35301026,3668.0,3667.7,0.24544]
[1736145204185,2.35301026,3668.0,3667.5,2.60434537]
[1736145204186,2.10759026,3668.1,3667.9,0.24542]
[1736145204387,2.10759026,3668.1,3668.0,0.4407]
[1736145205482,2.10759026,3668.1,3668.0,0.68612]
[1736145205683,1.42989026,3668.1,3668.0,0.68612]
[1736145205890,3.18387127,3668.4,3668.3,0.2454]
[1736145205891,1.42989026,3668.4,3668.3,0.2454]
[1736145206476,1.42989026,3668.4,3668.2,2.17154537]
[1736145206686,1.42989026,3668.4,3668.3,0.2454]
[1736145206885,1.42989026,3668.4,3668.2,2.41694537]
[1736145207083,1.42989026,3668.4,3668.3,40.8]
[1736145207685,0.24539,3668.5,3668.3,40.8]
[1736145207890,0.24541,3668.2,3668.0,6.82989425]
[1736145208389,0.24541,3668.2,3668.1,40.8]
[1736145209779,0.24541,3668.2,3668.0,4.71932109]
[1736145210190,0.24541,3668.2,3668.0,0.4407]
[1736145210587,0.416,3668.4,3668.0,0.4407]
[1736145210788,0.2454,3668.3,3668.0,0.4407]
[1736145211488,0.2454,3668.4,3668.0,0.68612]
[1736145212091,0.2454,3668.4,3668.0,0.4407]
[1736145212284,3.2078,3668.5,3668.0,0.4407]
[1736145212490,3.2078,3668.5,3667.9,4.27862109]
[1736145213191,3.2078,3668.5,3667.9,4.52404109]
[1736145213392,0.24539,3668.4,3667.9,4.52404109]
[1736145213788,0.2454,3668.3,3667.9,4.52404109]
[1736145214093,0.2454,3668.3,3668.0,4.27862109]
[1736145214295,0.24541,3668.2,3668.0,4.27862109]
[1736145214589,3.2078,3668.5,3668.0,4.27862109]
[1736145214590,0.24541,3668.3,3668.0,4.27862109]
[1736145214992,0.24541,3668.3,3668.0,45.07862109]
[1736145215594,0.24541,3668.3,3668.0,40.8]
[1736145216094,0.24541,3668.3,3668.0,41.04542]
[1736145216792,0.24541,3668.3,3668.0,45.32404109]
[1736145216995,0.24541,3668.3,3668.0,46.30546134]
[1736145218096,0.98142025,3668.4,3668.0,46.06004134]
[1736145218298,0.2454,3668.3,3668.0,46.06004134]
[1736145218490,0.98142025,3668.4,3668.0,46.06004134]
[1736145218690,0.2454,3668.3,3668.0,46.06004134]
[1736145219092,0.24541,3668.1,3668.0,46.06004134]
[1736145219301,0.24541,3668.1,3668.0,45.07862109]
[1736145219608,0.24541,3668.1,3668.0,4.27862109]
[1736145220896,3.45321,3668.1,3668.0,4.27862109]
[1736145221406,0.24543,3667.9,3667.8,4.27862109]
[1736145221699,1.22685025,3667.9,3667.8,4.27862109]
[1736145223000,0.24545,3667.6,3667.5,4.71342109]
[1736145224699,0.24545,3667.6,3667.5,0.4348]
[1736145226398,0.24545,3667.6,3667.5,4.71342109]
[1736145227903,3.45324,3667.7,3667.5,4.71342109]
[1736145228102,3.2078,3667.7,3667.5,0.4348]
[1736145228508,0.24545,3667.6,3667.5,0.4348]
[1736145228900,3.45325,3667.7,3667.5,0.4348]
[1736145229100,3.45325,3667.7,3667.6,40.8]
[1736145229610,3.2078,3667.7,3667.6,40.8]
[1736145230102,3.2078,3667.7,3667.6,41.04545]
[1736145230306,3.2078,3667.7,3667.6,43.22094735]
[1736145230706,3.18387127,3668.0,3667.7,0.24544]
[1736145230906,3.42929127,3668.1,3667.7,0.24544]
[1736145231108,0.24542,3668.0,3667.7,0.24544]
[1736145231303,3.18387127,3668.1,3667.6,40.8]
[1736145231504,0.24544,3667.8,3667.5,4.95887109]
[1736145231707,3.18387127,3668.1,3667.5,4.71342109]
[1736145231909,0.24544,3667.7,3667.5,45.51342109]
[1736145232208,0.14544,3667.7,3667.5,47.62399425]
[1736145232616,0.24544,3667.8,3667.5,47.62399425]
[1736145232916,0.24545,3667.7,3667.5,47.62399425]
[1736145233415,3.2078,3667.9,3667.5,47.62399425]
[1736145233416,3.2078,3667.9,3667.6,4.28354781]
[1736145233709,0.24544,3667.8,3667.6,4.28354781]
[1736145234708,0.24544,3667.8,3667.7,4.28354781]
[1736145236007,0.67924,3667.8,3667.7,4.28354781]
[1736145237214,0.24544,3667.8,3667.7,4.28354781]
[1736145237515,3.2078,3667.9,3667.7,4.28354781]
[1736145237715,3.2078,3667.9,3667.7,0.24544]
[1736145238215,3.2078,3667.9,3667.6,2.17549735]
[1736145238418,3.2078,3667.9,3667.8,0.24544]
[1736145239111,3.2078,3667.9,3667.8,41.04544]
[1736145239820,3.18387127,3668.2,3668.1,0.24541]
[1736145240112,3.2078,3668.3,3668.1,0.24541]
[1736145240315,3.2078,3668.3,3667.9,2.62729735]
[1736145240316,3.18387127,3668.4,3668.2,1.1176]
[1736145240511,3.18387127,3668.4,3668.2,3.04769735]
[1736145240716,2.50597127,3668.4,3668.3,0.2454]
[1736145241015,3.2078,3668.7,3668.6,0.24538]
[1736145241411,4.21957077,3668.8,3668.7,0.24537]
[1736145241812,3.2078,3669.1,3668.5,2.17549735]
[1736145241813,3.17206262,3669.0,3668.8,0.24537]
[1736145242433,3.17206262,3669.0,3668.7,0.24537]
[1736145242939,3.17206262,3669.0,3668.8,0.24537]
[1736145243232,3.2078,3669.1,3668.8,4.52773881]
[1736145243628,3.2078,3669.1,3668.8,4.28236881]
[1736145243927,3.2078,3669.1,3668.9,0.4233]
[1736145246526,3.2078,3669.1,3668.9,0.66866]
[1736145247034,3.2078,3669.1,3668.9,0.4233]
[1736145249427,3.2078,3669.1,3668.8,4.52773881]
[1736145249629,3.2078,3669.1,3668.8,4.28236881]
[1736145250023,3.2078,3669.1,3668.8,4.52772881]
[1736145250335,3.2078,3669.1,3668.8,4.28236881]
[1736145250523,2.17549735,3669.5,3668.8,4.28236881]
[1736145250524,3.2078,3669.5,3668.8,4.28236881]
[1736145250730,3.2078,3669.5,3669.3,0.24533]
[1736145251029,3.2078,3669.5,3669.4,0.8797]
[1736145251431,3.45313,3669.5,3669.0,0.24535]
[1736145252025,3.2078,3669.5,3669.1,40.8]
[1736145252232,0.24534,3669.2,3668.9,5.16206881]
[1736145252426,0.4283,3669.1,3668.9,5.40742881]
[1736145252626,0.4283,3669.1,3668.9,5.16206881]
[1736145253236,0.4283,3669.1,3668.9,1.12506]
[1736145253828,5.38329735,3669.5,3668.9,0.8797]
[1736145254033,0.67123,3669.4,3669.0,0.24535]
[1736145254239,0.4259,3669.4,3668.9,0.8797]
[1736145254540,0.4259,3669.4,3669.1,0.24535]
[1736145255039,1.40679181,3669.4,3669.1,0.24535]
[1736145255231,1.40679181,3669.4,3669.0,0.98089181]
[1736145255433,1.65212181,3669.4,3669.0,0.98089181]
[1736145255733,3.2078,3669.5,3669.0,0.98089181]
[1736145255934,0.98089181,3669.4,3669.0,0.98089181]
[1736145256334,0.98089181,3669.4,3669.1,0.24535]
[1736145256636,0.98089181,3669.2,3668.9,1.12506]
[1736145256939,0.98089181,3669.2,3668.9,0.8797]
[1736145257141,0.4245,3669.3,3669.0,0.24535]
[1736145257338,0.66984,3669.3,3668.9,1.12506]
[1736145257532,0.4245,3669.3,3669.0,0.24535]
[1736145257732,0.24533,3669.4,3669.0,0.24535]
[1736145258041,3.2078,3669.5,3668.9,0.8797]
[1736145258240,3.2078,3669.5,3669.0,0.24535]
[1736145258438,3.2078,3669.5,3669.2,0.24534]
[1736145259143,3.45312,3669.5,3669.1,0.24534]
[1736145259746,3.2078,3669.5,3669.2,0.24534]
[1736145260741,3.45312,3669.5,3669.1,0.24535]
[1736145262043,3.45312,3669.5,3668.9,0.8797]
[1736145262044,3.2078,3669.5,3669.2,0.24534]
[1736145262245,3.2078,3669.5,3669.3,0.24533]
[1736145262439,3.2078,3669.5,3669.4,0.8619]
[1736145264236,3.2078,3669.9,3669.5,0.24532]
[1736145264540,3.2078,3669.9,3669.7,0.2453]
[1736145265044,3.2078,3669.9,3669.8,40.8]
[1736145265448,3.2078,3669.9,3669.7,0.2453]
[1736145265948,3.2078,3669.9,3669.6,0.66931]
[1736145266443,3.2078,3669.9,3669.6,0.424]
[1736145266644,3.2078,3669.9,3669.7,0.24531]
[1736145266849,3.2078,3669.9,3669.6,0.66931]
[1736145267350,3.4531,3669.9,3669.6,0.66931]
[1736145267547,3.2078,3669.9,3669.6,0.66931]
[1736145268251,3.2078,3669.9,3669.7,0.24531]
[1736145269547,3.2078,3669.9,3669.6,0.424]
[1736145269748,3.2078,3669.9,3669.6,0.66931]
[1736145270052,3.2078,3669.9,3669.6,0.424]
[1736145270257,3.2078,3669.9,3669.7,0.24531]
[1736145270545,3.2078,3669.9,3669.6,0.424]
[1736145270743,3.2078,3669.9,3669.8,0.2453]
[1736145271344,0.4416,3670.2,3669.7,2.17372927]
[1736145271549,3.2078,3670.4,3670.3,0.24527]
[1736145271751,3.2078,3670.4,3670.0,2.17372927]
[1736145271951,3.2078,3670.4,3670.3,0.24527]
[1736145272150,4.4885,3670.8,3670.1,0.8908]
[1736145272355,4.4885,3670.8,3670.2,0.4137]
[1736145272652,3.6533,3670.8,3670.2,0.4137]
[1736145273651,3.6533,3670.8,3670.5,0.24525]
[1736145273846,3.2078,3670.8,3670.3,2.17372927]
[1736145274047,3.2078,3670.8,3670.4,0.24526]
[1736145274247,0.69482,3671.1,3670.7,0.24524]
[1736145274445,0.69482,3671.1,3670.8,0.874]
[1736145274648,0.4496,3671.1,3670.8,0.874]
[1736145275149,0.4496,3671.1,3670.8,1.54383]
[1736145275747,0.4496,3671.1,3670.8,1.2986]
[1736145275945,0.4496,3671.1,3670.9,0.24523]
[1736145276355,0.4496,3671.1,3671.0,0.24522]
[1736145276649,0.4496,3671.1,3670.9,0.24522]
[1736145276854,0.4496,3671.1,3671.0,0.24522]
[1736145277749,3.2078,3671.2,3670.8,1.2986]
[1736145277954,3.87769,3671.6,3671.3,0.2452]
[1736145278152,3.87769,3671.6,3671.4,0.4442]
[1736145278346,3.6325,3671.6,3671.4,0.4442]
[1736145278552,3.2078,3671.6,3671.5,0.24519]
[1736145279350,0.4247,3671.9,3671.5,0.24519]
[1736145279351,3.2078,3672.0,3671.7,0.24517]
[1736145279559,0.2452,3671.4,3670.9,41.04523]
[1736145279750,3.45299,3671.5,3671.1,0.24521]
[1736145279948,3.45299,3671.5,3670.9,0.4442]
[1736145279949,3.2078,3671.5,3671.2,0.2452]
[1736145280257,3.2078,3671.5,3671.3,40.8]
[1736145280462,0.6956,3671.4,3670.9,0.68943]
[1736145280758,0.4504,3671.4,3670.4,5.38152927]
[1736145280953,3.2078,3671.1,3670.3,0.4123]
[1736145281161,3.2078,3670.7,3670.2,4.28236881]
[1736145281364,0.24527,3670.3,3670.2,4.28236881]
[1736145281661,0.24527,3670.3,3669.8,2.41902927]
[1736145282456,0.24527,3670.4,3669.9,0.24529]
[1736145282850,3.2078,3670.3,3669.7,0.4445]
[1736145283057,0.2453,3669.8,3669.5,2.17372927]
[1736145283352,0.4186,3669.7,3669.5,2.41904927]
[1736145285160,0.4186,3669.7,3669.6,41.04531]
[1736145285358,3.2078,3670.3,3669.6,41.04531]
[1736145285567,0.24528,3670.1,3669.6,41.04531]
[1736145285865,0.24528,3670.1,3669.6,40.8]
[1736145286259,3.2078,3670.3,3669.6,40.8]
[1736145286456,0.24529,3670.0,3669.6,40.8]
[1736145286859,0.24529,3670.1,3669.6,40.8]
[1736145287452,0.24527,3670.2,3669.6,40.8]
[1736145287652,3.2078,3670.3,3669.6,40.8]
[1736145287857,0.24529,3670.0,3669.6,40.8]
[1736145288860,0.24529,3670.1,3669.6,40.8]
[1736145289060,3.2078,3670.3,3669.6,40.8]
[1736145289259,0.24529,3670.0,3669.6,40.8]
[1736145290564,3.2078,3670.3,3669.6,40.8]
[1736145290766,0.2453,3669.9,3669.5,2.17372927]
[1736145291167,0.2453,3669.9,3669.6,40.8]
[1736145291463,0.24531,3669.7,3669.6,40.8]
[1736145291970,0.24531,3669.7,3669.3,0.4504]
[1736145292470,0.24531,3669.7,3669.4,40.8]
[1736145292768,0.24532,3669.6,3669.4,40.8]
[1736145294165,0.8275,3669.8,3669.4,40.8]
[1736145294365,3.2078,3669.9,3669.5,2.17372927]
[1736145294666,3.2078,3669.9,3669.7,0.24531]
[1736145294860,3.2078,3669.9,3669.5,2.17372927]
[1736145295065,3.2078,3669.9,3669.6,0.24531]
[1736145296170,3.2078,3669.9,3669.7,0.24531]
[1736145296365,3.2078,3669.9,3669.8,0.4459]
[1736145296565,3.2078,3669.9,3669.8,0.8645]
[1736145301984,0.24528,3670.1,3669.8,0.8645]
[1736145302677,0.24529,3670.0,3669.8,0.8645]
[1736145303471,0.24528,3670.1,3669.8,0.8645]
[1736145305180,3.45309,3670.0,3669.8,0.8645]
[1736145305382,3.2078,3670.0,3669.8,0.8645]
[1736145306282,3.2078,3670.0,3669.8,0.4186]
[1736145306586,0.24532,3669.5,3669.4,0.4093]
[1736145307285,0.24532,3669.5,3669.2,48.29016881]
[1736145307286,0.24533,3669.3,3669.2,4.28236881]
[1736145307487,0.24535,3669.1,3669.0,4.28236881]
[1736145307678,3.45315,3669.1,3669.0,4.28236881]
[1736145307880,3.2078,3669.1,3669.0,4.28236881]
[1736145308483,3.2078,3669.1,3669.0,4.52771881]
[1736145309083,3.2078,3669.7,3668.9,5.38152927]
[1736145309382,3.2078,3669.7,3669.6,0.24531]
[1736145309684,3.2078,3669.7,3669.6,2.41903927]
[1736145309989,3.2078,3669.7,3669.6,43.21903927]
[1736145310389,3.2078,3670.2,3669.8,0.2453]
[1736145310687,3.2078,3670.2,3669.9,0.852]
[1736145310891,3.2078,3670.2,3669.9,3.02572927]
[1736145311086,3.2078,3670.2,3670.1,0.24528]
[1736145311594,3.2078,3670.6,3669.9,3.02572927]
[1736145311789,3.16911137,3670.7,3670.6,0.24525]